[Event "Titled Tuesday Blitz February 28 Early 2023"]
[White "Lucassen, Mickey"]
[Black "Migot, Tangi"]
[WhiteFideId "12919110"]
[BlackFideId "662445"]
[WhiteElo "2357"]
[BlackElo "2552"]
[Result "0-1"]
[Round "05"]
[TimeControl "180+2"]
[Date "2023.02.28"]
[WhiteClock "0:00:11"]
[BlackClock "0:00:19"]

1. e4 {[%clk 0:03:00]}  c5 {[%clk 0:02:59]} 2. Nf3 {[%clk 0:03:00]}  a6 {[%clk 0:02:59]} 3. c4 {[%clk 0:03:00]}  e6 {[%clk 0:02:58]} 4. d4 {[%clk 0:03:00]}  cxd4 {[%clk 0:02:59]} 5. Nxd4 {[%clk 0:03:00]}  b6 {[%clk 0:03:00]} 6. Nc3 {[%clk 0:03:00]}  Bb7 {[%clk 0:03:00]} 7. Be2 {[%clk 0:03:00]}  Qc7 {[%clk 0:02:59]} 8. O-O {[%clk 0:02:59]}  Nf6 {[%clk 0:02:59]} 9. f3 {[%clk 0:02:59]}  Bd6 {[%clk 0:02:51]} 10. g3 {[%clk 0:02:05]}  h5 {[%clk 0:02:46]} 11. Be3 {[%clk 0:02:05]}  Bc5 {[%clk 0:02:36]} 12. Qd2 {[%clk 0:01:58]}  h4 {[%clk 0:02:36]} 13. Kg2 {[%clk 0:01:55]}  Nc6 {[%clk 0:02:29]} 14. Nxc6 {[%clk 0:01:53]}  Bxc6 {[%clk 0:02:22]} 15. Bxc5 {[%clk 0:01:35]}  bxc5 {[%clk 0:02:21]} 16. Qe3 {[%clk 0:01:33]}  d6 {[%clk 0:02:01]} 17. Rad1 {[%clk 0:01:22]}  O-O-O {[%clk 0:01:58]} 18. a3 {[%clk 0:01:17]}  g5 {[%clk 0:01:27]} 19. g4 {[%clk 0:01:08]}  h3+ {[%clk 0:01:23]} 20. Kg1 {[%clk 0:01:04]}  Nd7 {[%clk 0:01:22]} 21. b4 {[%clk 0:01:02]}  Bb7 {[%clk 0:01:20]} 22. Na4 {[%clk 0:00:46]}  Nb6 {[%clk 0:01:05]} 23. Nxb6+ {[%clk 0:00:37]}  Qxb6 {[%clk 0:01:06]} 24. Qxg5 {[%clk 0:00:35]}  cxb4+ {[%clk 0:01:06]} 25. Kh1 {[%clk 0:00:35]}  f5 {[%clk 0:00:55]} 26. gxf5 {[%clk 0:00:31]}  exf5 {[%clk 0:00:55]} 27. Qxf5+ {[%clk 0:00:31]}  Kb8 {[%clk 0:00:55]} 28. axb4 {[%clk 0:00:28]}  Qe3 {[%clk 0:00:54]} 29. Rde1 {[%clk 0:00:20]}  Rdf8 {[%clk 0:00:52]} 30. Qa5 {[%clk 0:00:19]}  Rhg8 {[%clk 0:00:46]} 31. Bd1 {[%clk 0:00:15]}  Qd3 {[%clk 0:00:34]} 32. c5 {[%clk 0:00:14]}  Rg2 {[%clk 0:00:28]} 33. cxd6 {[%clk 0:00:14]}  Qd2 {[%clk 0:00:21]} 34. Qc7+ {[%clk 0:00:13]}  Ka8 {[%clk 0:00:21]} 35. Qh7 {[%clk 0:00:11]}  Rxh2+ {[%clk 0:00:19]} 0-1


[Site "https://www.chess.com"]

[Event "Titled Tuesday Blitz February 28 Early 2023"]
[White "Turzo, Attila"]
[Black "Liu, Casper"]
[WhiteFideId "704954"]
[BlackFideId "1454153"]
[WhiteElo "2538"]
[BlackElo "2221"]
[Result "1-0"]
[Round "05"]
[TimeControl "180+2"]
[Date "2023.02.28"]
[WhiteClock "0:00:10"]
[BlackClock "0:00:06"]

1. e4 {[%clk 0:02:54]}  c5 {[%clk 0:02:57]} 2. Nc3 {[%clk 0:02:54]}  d6 {[%clk 0:02:58]} 3. f4 {[%clk 0:02:54]}  g6 {[%clk 0:02:56]} 4. Nf3 {[%clk 0:02:54]}  Bg7 {[%clk 0:02:57]} 5. Bb5+ {[%clk 0:02:54]}  Bd7 {[%clk 0:02:57]} 6. Qe2 {[%clk 0:02:52]}  Nf6 {[%clk 0:02:57]} 7. O-O {[%clk 0:02:52]}  O-O {[%clk 0:02:57]} 8. Kh1 {[%clk 0:02:51]}  Bxb5 {[%clk 0:02:57]} 9. Nxb5 {[%clk 0:02:49]}  a6 {[%clk 0:02:57]} 10. Nc3 {[%clk 0:02:48]}  b5 {[%clk 0:02:58]} 11. e5 {[%clk 0:02:46]}  Ne8 {[%clk 0:02:39]} 12. b3 {[%clk 0:02:17]}  d5 {[%clk 0:02:29]} 13. Bb2 {[%clk 0:01:51]}  Nc6 {[%clk 0:02:24]} 14. Rae1 {[%clk 0:01:50]}  Nc7 {[%clk 0:02:12]} 15. Nd1 {[%clk 0:01:37]}  d4 {[%clk 0:02:03]} 16. c3 {[%clk 0:01:34]}  d3 {[%clk 0:01:59]} 17. Qe4 {[%clk 0:01:32]}  Qd5 {[%clk 0:01:59]} 18. Nf2 {[%clk 0:01:29]}  c4 {[%clk 0:01:56]} 19. bxc4 {[%clk 0:01:15]}  bxc4 {[%clk 0:01:57]} 20. Ba3 {[%clk 0:01:13]}  Rab8 {[%clk 0:01:51]} 21. Rb1 {[%clk 0:01:13]}  Rb5 {[%clk 0:01:49]} 22. Nd4 {[%clk 0:00:46]}  Nxd4 {[%clk 0:01:47]} 23. cxd4 {[%clk 0:00:46]}  Rfb8 {[%clk 0:00:23]} 24. Rxb5 {[%clk 0:00:42]}  axb5 {[%clk 0:00:24]} 25. Bxe7 {[%clk 0:00:42]}  Ra8 {[%clk 0:00:21]} 26. a3 {[%clk 0:00:38]}  Bf8 {[%clk 0:00:21]} 27. Bxf8 {[%clk 0:00:37]}  Kxf8 {[%clk 0:00:22]} 28. Qe3 {[%clk 0:00:32]}  Rxa3 {[%clk 0:00:21]} 29. Ne4 {[%clk 0:00:32]}  b4 {[%clk 0:00:21]} 30. Nf6 {[%clk 0:00:29]}  Qb5 {[%clk 0:00:18]} 31. Qh3 {[%clk 0:00:26]}  b3 {[%clk 0:00:17]} 32. Qc8+ {[%clk 0:00:17]}  Ne8 {[%clk 0:00:17]} 33. f5 {[%clk 0:00:13]}  b2 {[%clk 0:00:13]} 34. Nd7+ {[%clk 0:00:12]}  Kg7 {[%clk 0:00:07]} 35. Qxe8 {[%clk 0:00:11]}  b1=Q {[%clk 0:00:06]} 36. Qf8# {[%clk 0:00:10]} 1-0


[Site "https://www.chess.com"]

[Event "Titled Tuesday Blitz February 28 Early 2023"]
[White "Derjabin, Ilja"]
[Black "Levitan, Caleb Levi"]
[WhiteFideId "14104768"]
[BlackFideId "14332620"]
[WhiteElo "2309"]
[BlackElo "1963"]
[Result "1-0"]
[Round "05"]
[TimeControl "180+2"]
[Date "2023.02.28"]
[WhiteClock "0:00:35"]
[BlackClock "0:00:01"]

1. d4 {[%clk 0:03:00]}  Nf6 {[%clk 0:02:54]} 2. c4 {[%clk 0:03:00]}  e6 {[%clk 0:02:55]} 3. Nc3 {[%clk 0:03:00]}  Bb4 {[%clk 0:02:50]} 4. a3 {[%clk 0:03:00]}  Bxc3+ {[%clk 0:02:45]} 5. bxc3 {[%clk 0:03:00]}  d5 {[%clk 0:02:39]} 6. e3 {[%clk 0:02:58]}  O-O {[%clk 0:02:37]} 7. Bd3 {[%clk 0:02:57]}  dxc4 {[%clk 0:02:34]} 8. Bxc4 {[%clk 0:02:57]}  b6 {[%clk 0:02:35]} 9. Ne2 {[%clk 0:02:56]}  Bb7 {[%clk 0:02:35]} 10. f3 {[%clk 0:02:56]}  Nbd7 {[%clk 0:02:31]} 11. e4 {[%clk 0:02:54]}  e5 {[%clk 0:02:23]} 12. O-O {[%clk 0:02:52]}  c5 {[%clk 0:02:06]} 13. Bg5 {[%clk 0:02:48]}  h6 {[%clk 0:01:54]} 14. Bh4 {[%clk 0:02:46]}  Qe7 {[%clk 0:01:40]} 15. Qd2 {[%clk 0:02:25]}  Rac8 {[%clk 0:01:32]} 16. Ng3 {[%clk 0:02:25]}  cxd4 {[%clk 0:01:21]} 17. Qa2 {[%clk 0:02:02]}  Qc5 {[%clk 0:01:13]} 18. Bb3 {[%clk 0:02:01]}  dxc3+ {[%clk 0:01:03]} 19. Kh1 {[%clk 0:02:01]}  g5 {[%clk 0:00:54]} 20. Nf5 {[%clk 0:02:01]}  gxh4 {[%clk 0:00:52]} 21. Nxh6+ {[%clk 0:01:55]}  Kh7 {[%clk 0:00:52]} 22. Nf5 {[%clk 0:01:55]}  c2 {[%clk 0:00:40]} 23. Rac1 {[%clk 0:01:53]}  Ba6 {[%clk 0:00:31]} 24. Rxc2 {[%clk 0:01:50]}  Qb5 {[%clk 0:00:21]} 25. Rcf2 {[%clk 0:01:39]}  Rg8 {[%clk 0:00:05]} 26. Qd2 {[%clk 0:01:34]}  Rg6 {[%clk 0:00:04]} 27. Bxf7 {[%clk 0:01:35]}  Rcg8 {[%clk 0:00:04]} 28. Bxg8+ {[%clk 0:01:35]}  Nxg8 {[%clk 0:00:04]} 29. Nxh4 {[%clk 0:01:29]}  Rh6 {[%clk 0:00:05]} 30. Nf5 {[%clk 0:01:28]}  Rg6 {[%clk 0:00:05]} 31. Rd1 {[%clk 0:01:25]}  Ndf6 {[%clk 0:00:05]} 32. Nh4 {[%clk 0:01:11]}  Rg7 {[%clk 0:00:04]} 33. Nf5 {[%clk 0:00:59]}  Rg6 {[%clk 0:00:04]} 34. Nd6 {[%clk 0:00:58]}  Qd7 {[%clk 0:00:03]} 35. Qa2 {[%clk 0:00:47]}  Qe7 {[%clk 0:00:02]} 36. Rfd2 {[%clk 0:00:47]}  Nh6 {[%clk 0:00:01]} 37. g4 {[%clk 0:00:37]}  Nhxg4 {[%clk 0:00:01]} 38. Nf5 {[%clk 0:00:35]} 1-0


[Site "https://www.chess.com"]

[Event "Titled Tuesday Blitz February 28 Early 2023"]
[White "Martin Carmona, Gaston Manuel"]
[Black "Prieto Aranguren, Alain"]
[WhiteFideId "22284567"]
[BlackFideId "2268906"]
[WhiteElo "2245"]
[BlackElo "2209"]
[Result "0-1"]
[Round "05"]
[TimeControl "180+2"]
[Date "2023.02.28"]
[WhiteClock "0:00:41"]
[BlackClock "0:00:28"]

1. Nf3 {[%clk 0:03:00]}  g6 {[%clk 0:02:59]} 2. c4 {[%clk 0:03:00]}  Bg7 {[%clk 0:02:58]} 3. Nc3 {[%clk 0:03:00]}  d6 {[%clk 0:02:58]} 4. d4 {[%clk 0:03:00]}  Nd7 {[%clk 0:02:57]} 5. g3 {[%clk 0:03:00]}  e5 {[%clk 0:02:56]} 6. Bg2 {[%clk 0:03:01]}  Ne7 {[%clk 0:02:56]} 7. O-O {[%clk 0:03:01]}  O-O {[%clk 0:02:55]} 8. b3 {[%clk 0:02:57]}  exd4 {[%clk 0:02:54]} 9. Nxd4 {[%clk 0:02:58]}  c5 {[%clk 0:02:35]} 10. Ndb5 {[%clk 0:02:53]}  a6 {[%clk 0:02:34]} 11. Nxd6 {[%clk 0:02:41]}  Bxc3 {[%clk 0:02:32]} 12. Bh6 {[%clk 0:02:41]}  Bg7 {[%clk 0:02:29]} 13. Bxg7 {[%clk 0:02:41]}  Kxg7 {[%clk 0:02:29]} 14. Nxb7 {[%clk 0:02:39]}  Bxb7 {[%clk 0:02:16]} 15. Bxb7 {[%clk 0:02:40]}  Ra7 {[%clk 0:02:15]} 16. Bg2 {[%clk 0:02:38]}  Nf6 {[%clk 0:02:13]} 17. Qc1 {[%clk 0:02:37]}  Nf5 {[%clk 0:02:10]} 18. Rd1 {[%clk 0:02:34]}  Rd7 {[%clk 0:02:07]} 19. Rxd7 {[%clk 0:02:32]}  Qxd7 {[%clk 0:02:06]} 20. Qa3 {[%clk 0:02:30]}  Qd6 {[%clk 0:01:58]} 21. e3 {[%clk 0:02:31]}  Rd8 {[%clk 0:01:56]} 22. h3 {[%clk 0:02:29]}  Nxg3 {[%clk 0:01:39]} 23. fxg3 {[%clk 0:02:23]}  Qxg3 {[%clk 0:01:38]} 24. Qb2 {[%clk 0:01:43]}  Qxe3+ {[%clk 0:01:34]} 25. Qf2 {[%clk 0:01:43]}  Qg5 {[%clk 0:01:24]} 26. Re1 {[%clk 0:01:30]}  Rd2 {[%clk 0:01:15]} 27. Re2 {[%clk 0:01:30]}  Rd1+ {[%clk 0:01:15]} 28. Re1 {[%clk 0:01:30]}  Rd2 {[%clk 0:01:06]} 29. Re2 {[%clk 0:01:30]}  Rxe2 {[%clk 0:00:58]} 30. Qxe2 {[%clk 0:01:30]}  h5 {[%clk 0:00:55]} 31. Qb2 {[%clk 0:01:10]}  h4 {[%clk 0:00:52]} 32. b4 {[%clk 0:01:09]}  Qe3+ {[%clk 0:00:51]} 33. Kh1 {[%clk 0:01:06]}  Qe1+ {[%clk 0:00:51]} 34. Kh2 {[%clk 0:01:06]}  Qg3+ {[%clk 0:00:49]} 35. Kg1 {[%clk 0:01:04]}  Qe1+ {[%clk 0:00:47]} 36. Kh2 {[%clk 0:01:04]}  Qxb4 {[%clk 0:00:47]} 37. Qxb4 {[%clk 0:00:51]}  cxb4 {[%clk 0:00:47]} 38. c5 {[%clk 0:00:52]}  Ne8 {[%clk 0:00:44]} 39. Bb7 {[%clk 0:00:48]}  a5 {[%clk 0:00:42]} 40. Kg2 {[%clk 0:00:48]}  Kf6 {[%clk 0:00:41]} 41. Kf3 {[%clk 0:00:48]}  Ke5 {[%clk 0:00:40]} 42. Kg4 {[%clk 0:00:48]}  a4 {[%clk 0:00:39]} 43. Bc6 {[%clk 0:00:43]}  b3 {[%clk 0:00:38]} 44. axb3 {[%clk 0:00:41]}  a3 {[%clk 0:00:31]} 45. Bxe8 {[%clk 0:00:41]}  a2 {[%clk 0:00:32]} 46. c6 {[%clk 0:00:41]}  a1=Q {[%clk 0:00:30]} 47. c7 {[%clk 0:00:41]}  Qc1 {[%clk 0:00:28]} 0-1


[Site "https://www.chess.com"]

[Event "Titled Tuesday Blitz February 28 Early 2023"]
[White "Vlassov, Nikolai"]
[Black "Mirzanurov, Bulat"]
[WhiteFideId "4103360"]
[BlackFideId "4184521"]
[WhiteElo "2324"]
[BlackElo "2019"]
[Result "1-0"]
[Round "05"]
[TimeControl "180+2"]
[Date "2023.02.28"]
[WhiteClock "0:00:06"]
[BlackClock "0:00:21"]

1. e4 {[%clk 0:03:00]}  c5 {[%clk 0:02:59]} 2. c3 {[%clk 0:03:00]}  Nf6 {[%clk 0:02:56]} 3. e5 {[%clk 0:03:01]}  Nd5 {[%clk 0:02:53]} 4. d4 {[%clk 0:03:02]}  cxd4 {[%clk 0:02:52]} 5. cxd4 {[%clk 0:03:02]}  e6 {[%clk 0:02:51]} 6. Nc3 {[%clk 0:03:02]}  Nxc3 {[%clk 0:02:49]} 7. bxc3 {[%clk 0:03:03]}  b6 {[%clk 0:02:47]} 8. f4 {[%clk 0:03:03]}  Qc7 {[%clk 0:02:47]} 9. Bd2 {[%clk 0:03:03]}  Bb7 {[%clk 0:02:46]} 10. Nf3 {[%clk 0:03:03]}  d6 {[%clk 0:02:45]} 11. Bd3 {[%clk 0:03:02]}  Nd7 {[%clk 0:02:43]} 12. O-O {[%clk 0:03:02]}  dxe5 {[%clk 0:02:41]} 13. fxe5 {[%clk 0:03:01]}  Be7 {[%clk 0:02:41]} 14. Qe2 {[%clk 0:02:53]}  O-O {[%clk 0:02:39]} 15. Rf2 {[%clk 0:02:44]}  h6 {[%clk 0:02:06]} 16. Raf1 {[%clk 0:02:41]}  f6 {[%clk 0:02:05]} 17. exf6 {[%clk 0:02:17]}  Rxf6 {[%clk 0:02:03]} 18. Nh4 {[%clk 0:01:51]}  Nf8 {[%clk 0:01:44]} 19. Rxf6 {[%clk 0:01:40]}  Bxf6 {[%clk 0:01:42]} 20. Ng6 {[%clk 0:01:35]}  Qd6 {[%clk 0:01:28]} 21. Bf4 {[%clk 0:01:07]}  Qd7 {[%clk 0:01:24]} 22. Bxh6 {[%clk 0:00:54]}  Nxg6 {[%clk 0:01:18]} 23. Bxg6 {[%clk 0:00:53]}  Bxd4+ {[%clk 0:01:07]} 24. cxd4 {[%clk 0:00:52]}  gxh6 {[%clk 0:01:07]} 25. Bf7+ {[%clk 0:00:47]}  Kh7 {[%clk 0:01:06]} 26. Qd3+ {[%clk 0:00:34]}  Kh8 {[%clk 0:01:04]} 27. Rf6 {[%clk 0:00:29]}  Rc8 {[%clk 0:00:29]} 28. Rxh6+ {[%clk 0:00:20]}  Kg7 {[%clk 0:00:29]} 29. Qh7+ {[%clk 0:00:14]}  Kf8 {[%clk 0:00:28]} 30. Qh8+ {[%clk 0:00:12]}  Ke7 {[%clk 0:00:28]} 31. Qf6+ {[%clk 0:00:11]}  Kd6 {[%clk 0:00:26]} 32. Qe5+ {[%clk 0:00:09]}  Ke7 {[%clk 0:00:22]} 33. Rxe6+ {[%clk 0:00:04]}  Kxf7 {[%clk 0:00:22]} 34. Qf5+ {[%clk 0:00:04]}  Kg8 {[%clk 0:00:18]} 35. Rg6+ {[%clk 0:00:04]}  Qg7 {[%clk 0:00:19]} 36. Rxg7+ {[%clk 0:00:04]}  Kxg7 {[%clk 0:00:20]} 37. Qd7+ {[%clk 0:00:04]}  Kf6 {[%clk 0:00:19]} 38. Qxb7 {[%clk 0:00:05]}  Rc1+ {[%clk 0:00:20]} 39. Kf2 {[%clk 0:00:05]}  Rc2+ {[%clk 0:00:21]} 40. Ke3 {[%clk 0:00:06]}  Rxa2 {[%clk 0:00:21]} 41. Qc6+ {[%clk 0:00:05]}  Kg7 {[%clk 0:00:20]} 42. Qd7+ {[%clk 0:00:05]}  Kh8 {[%clk 0:00:20]} 43. Qe8+ {[%clk 0:00:05]}  Kg7 {[%clk 0:00:20]} 44. Qe7+ {[%clk 0:00:05]}  Kh8 {[%clk 0:00:18]} 45. Qf8+ {[%clk 0:00:04]}  Kh7 {[%clk 0:00:19]} 46. Qf7+ {[%clk 0:00:05]}  Kh6 {[%clk 0:00:19]} 47. Qxa2 {[%clk 0:00:06]}  Kh5 {[%clk 0:00:20]} 48. Kf4 {[%clk 0:00:05]}  a5 {[%clk 0:00:21]} 49. Qg8 {[%clk 0:00:05]}  Kh6 {[%clk 0:00:21]} 50. Kf5 {[%clk 0:00:05]}  a4 {[%clk 0:00:21]} 51. Qh8# {[%clk 0:00:06]} 1-0


[Site "https://www.chess.com"]

[Event "Titled Tuesday Blitz February 28 Early 2023"]
[White "Janaszak, Dawid"]
[Black "Carrasco Miranda, Andres"]
[WhiteFideId "1119206"]
[BlackFideId "3405990"]
[WhiteElo "2220"]
[BlackElo "2183"]
[Result "1/2-1/2"]
[Round "05"]
[TimeControl "180+2"]
[Date "2023.02.28"]
[WhiteClock "0:00:45"]
[BlackClock "0:00:41"]

1. e4 {[%clk 0:02:55]}  c5 {[%clk 0:02:59]} 2. Nc3 {[%clk 0:02:51]}  d6 {[%clk 0:02:58]} 3. f4 {[%clk 0:02:49]}  g6 {[%clk 0:02:57]} 4. Nf3 {[%clk 0:02:50]}  Bg7 {[%clk 0:02:57]} 5. Bc4 {[%clk 0:02:50]}  Nc6 {[%clk 0:02:57]} 6. O-O {[%clk 0:02:50]}  e6 {[%clk 0:02:58]} 7. Qe1 {[%clk 0:02:33]}  Nge7 {[%clk 0:02:56]} 8. a3 {[%clk 0:02:29]}  O-O {[%clk 0:02:55]} 9. f5 {[%clk 0:02:30]}  gxf5 {[%clk 0:02:48]} 10. d3 {[%clk 0:02:29]}  fxe4 {[%clk 0:02:40]} 11. dxe4 {[%clk 0:02:25]}  Ng6 {[%clk 0:02:40]} 12. Bg5 {[%clk 0:02:17]}  f6 {[%clk 0:02:29]} 13. Be3 {[%clk 0:02:15]}  Kh8 {[%clk 0:02:27]} 14. h4 {[%clk 0:02:14]}  f5 {[%clk 0:02:15]} 15. h5 {[%clk 0:02:13]}  Nge5 {[%clk 0:02:15]} 16. Be2 {[%clk 0:02:08]}  Nxf3+ {[%clk 0:02:13]} 17. Bxf3 {[%clk 0:02:06]}  f4 {[%clk 0:02:06]} 18. Bf2 {[%clk 0:02:01]}  Bd4 {[%clk 0:02:07]} 19. Rd1 {[%clk 0:01:57]}  Qg5 {[%clk 0:02:05]} 20. Nb5 {[%clk 0:01:54]}  Bxf2+ {[%clk 0:02:04]} 21. Qxf2 {[%clk 0:01:53]}  Nd4 {[%clk 0:01:43]} 22. Nxd4 {[%clk 0:01:50]}  cxd4 {[%clk 0:01:43]} 23. Qxd4+ {[%clk 0:01:51]}  e5 {[%clk 0:01:35]} 24. Qxd6 {[%clk 0:01:51]}  Bh3 {[%clk 0:01:34]} 25. Rd5 {[%clk 0:01:43]}  Rae8 {[%clk 0:01:30]} 26. Rf2 {[%clk 0:01:25]}  Bg4 {[%clk 0:00:55]} 27. Bxg4 {[%clk 0:00:57]}  Qxg4 {[%clk 0:00:56]} 28. Rxe5 {[%clk 0:00:57]}  Rd8 {[%clk 0:00:56]} 29. Qe7 {[%clk 0:00:55]}  Rd1+ {[%clk 0:00:41]} 30. Rf1 {[%clk 0:00:56]}  Rxf1+ {[%clk 0:00:40]} 31. Kxf1 {[%clk 0:00:56]}  Qd1+ {[%clk 0:00:37]} 32. Kf2 {[%clk 0:00:57]}  Qd2+ {[%clk 0:00:38]} 33. Kg1 {[%clk 0:00:47]}  Qe1+ {[%clk 0:00:37]} 34. Kh2 {[%clk 0:00:45]}  Qg3+ {[%clk 0:00:38]} 35. Kg1 {[%clk 0:00:45]}  Qe1+ {[%clk 0:00:39]} 36. Kh2 {[%clk 0:00:46]}  Qg3+ {[%clk 0:00:40]} 37. Kg1 {[%clk 0:00:45]}  Qe1+ {[%clk 0:00:41]} 1/2-1/2


[Site "https://www.chess.com"]

[Event "Titled Tuesday Blitz February 28 Early 2023"]
[White "Boraso, Alessio"]
[Black "Kalajzic, Ivan"]
[WhiteFideId "848077"]
[BlackFideId "14506378"]
[WhiteElo "2286"]
[BlackElo "2203"]
[Result "1-0"]
[Round "05"]
[TimeControl "180+2"]
[Date "2023.02.28"]
[WhiteClock "0:00:29"]
[BlackClock "0:00:01"]

1. d4 {[%clk 0:03:00]}  Nc6 {[%clk 0:02:58]} 2. Bg5 {[%clk 0:02:59]}  h6 {[%clk 0:02:57]} 3. Bh4 {[%clk 0:02:59]}  g5 {[%clk 0:02:56]} 4. Bg3 {[%clk 0:02:59]}  Bg7 {[%clk 0:02:57]} 5. e3 {[%clk 0:02:59]}  d6 {[%clk 0:02:57]} 6. Nd2 {[%clk 0:02:57]}  Bf5 {[%clk 0:02:57]} 7. Bd3 {[%clk 0:02:56]}  Qd7 {[%clk 0:02:56]} 8. h4 {[%clk 0:02:53]}  Nf6 {[%clk 0:02:50]} 9. e4 {[%clk 0:02:37]}  Bg6 {[%clk 0:02:41]} 10. c3 {[%clk 0:02:36]}  e5 {[%clk 0:02:23]} 11. d5 {[%clk 0:02:28]}  Ne7 {[%clk 0:02:23]} 12. h5 {[%clk 0:02:23]}  Bh7 {[%clk 0:02:21]} 13. f3 {[%clk 0:02:23]}  O-O {[%clk 0:02:09]} 14. Bf2 {[%clk 0:02:22]}  c6 {[%clk 0:02:06]} 15. c4 {[%clk 0:02:19]}  a6 {[%clk 0:01:52]} 16. Qe2 {[%clk 0:02:13]}  cxd5 {[%clk 0:01:36]} 17. cxd5 {[%clk 0:02:13]}  Ne8 {[%clk 0:01:18]} 18. g4 {[%clk 0:02:13]}  Nc7 {[%clk 0:01:17]} 19. Kf1 {[%clk 0:02:11]}  Nb5 {[%clk 0:01:08]} 20. Bxb5 {[%clk 0:02:00]}  axb5 {[%clk 0:01:05]} 21. Kg2 {[%clk 0:01:57]}  f5 {[%clk 0:00:47]} 22. gxf5 {[%clk 0:01:44]}  Bxf5 {[%clk 0:00:46]} 23. exf5 {[%clk 0:01:36]}  Nxd5 {[%clk 0:00:47]} 24. Bg3 {[%clk 0:01:29]}  Qxf5 {[%clk 0:00:44]} 25. Nh3 {[%clk 0:01:28]}  Nf4+ {[%clk 0:00:41]} 26. Bxf4 {[%clk 0:01:26]}  exf4 {[%clk 0:00:41]} 27. Qe4 {[%clk 0:01:23]}  Rae8 {[%clk 0:00:31]} 28. Qxf5 {[%clk 0:01:16]}  Rxf5 {[%clk 0:00:32]} 29. Rhe1 {[%clk 0:01:13]}  Rfe5 {[%clk 0:00:22]} 30. Kf1 {[%clk 0:01:08]}  Re3 {[%clk 0:00:21]} 31. Rxe3 {[%clk 0:00:59]}  Rxe3 {[%clk 0:00:14]} 32. Rb1 {[%clk 0:00:59]}  d5 {[%clk 0:00:12]} 33. Nf2 {[%clk 0:00:57]}  Bd4 {[%clk 0:00:09]} 34. Ng4 {[%clk 0:00:54]}  Kg7 {[%clk 0:00:09]} 35. Nxe3 {[%clk 0:00:54]}  fxe3 {[%clk 0:00:07]} 36. Nb3 {[%clk 0:00:54]}  Bb6 {[%clk 0:00:06]} 37. Ke2 {[%clk 0:00:54]}  Kf6 {[%clk 0:00:05]} 38. Rd1 {[%clk 0:00:46]}  Ke5 {[%clk 0:00:04]} 39. Rd3 {[%clk 0:00:47]}  d4 {[%clk 0:00:04]} 40. Nc1 {[%clk 0:00:39]}  Kd5 {[%clk 0:00:04]} 41. b4 {[%clk 0:00:27]}  Kc4 {[%clk 0:00:04]} 42. a3 {[%clk 0:00:28]}  Ba7 {[%clk 0:00:03]} 43. Rb3 {[%clk 0:00:28]}  Kd5 {[%clk 0:00:02]} 44. Rb2 {[%clk 0:00:27]}  Kc4 {[%clk 0:00:02]} 45. Nd3 {[%clk 0:00:27]}  Kc3 {[%clk 0:00:01]} 46. Rb1 {[%clk 0:00:27]}  Kc2 {[%clk 0:00:01]} 47. Rc1+ {[%clk 0:00:28]}  Kb3 {[%clk 0:00:01]} 48. Rc7 {[%clk 0:00:29]} 1-0


[Site "https://www.chess.com"]

[Event "Titled Tuesday Blitz February 28 Early 2023"]
[White "Alahakoon, Isuru"]
[Black "Kavutskiy, Konstantin"]
[WhiteFideId "9900993"]
[BlackFideId "2026384"]
[WhiteElo "1995"]
[BlackElo "2369"]
[Result "1-0"]
[Round "05"]
[TimeControl "180+2"]
[Date "2023.02.28"]
[WhiteClock "0:00:11"]
[BlackClock "0:00:20"]

1. Nf3 {[%clk 0:03:00]}  Nf6 {[%clk 0:02:59]} 2. d4 {[%clk 0:03:00]}  g6 {[%clk 0:02:59]} 3. Nc3 {[%clk 0:03:00]}  d5 {[%clk 0:02:58]} 4. Bf4 {[%clk 0:02:59]}  Bg7 {[%clk 0:02:59]} 5. Nb5 {[%clk 0:02:59]}  Na6 {[%clk 0:02:58]} 6. e3 {[%clk 0:03:00]}  O-O {[%clk 0:02:58]} 7. h4 {[%clk 0:03:00]}  h5 {[%clk 0:02:57]} 8. Be2 {[%clk 0:02:59]}  c6 {[%clk 0:02:58]} 9. Nc3 {[%clk 0:02:59]}  Nc7 {[%clk 0:02:58]} 10. Ne5 {[%clk 0:02:58]}  Nce8 {[%clk 0:02:58]} 11. f3 {[%clk 0:02:55]}  Nd6 {[%clk 0:02:56]} 12. Qd2 {[%clk 0:02:47]}  Bf5 {[%clk 0:02:50]} 13. O-O-O {[%clk 0:02:43]}  Qa5 {[%clk 0:02:41]} 14. Kb1 {[%clk 0:02:41]}  Rfc8 {[%clk 0:02:40]} 15. g4 {[%clk 0:02:40]}  Be6 {[%clk 0:02:34]} 16. gxh5 {[%clk 0:02:24]}  Nxh5 {[%clk 0:02:33]} 17. Bh2 {[%clk 0:02:11]}  b5 {[%clk 0:02:32]} 18. Bd3 {[%clk 0:01:52]}  Nc4 {[%clk 0:02:27]} 19. Bxc4 {[%clk 0:01:49]}  bxc4 {[%clk 0:02:23]} 20. e4 {[%clk 0:01:29]}  Rab8 {[%clk 0:02:23]} 21. Nxc6 {[%clk 0:01:16]}  Rxb2+ {[%clk 0:02:19]} 22. Kxb2 {[%clk 0:01:13]}  Rxc6 {[%clk 0:02:19]} 23. Ka1 {[%clk 0:01:08]}  Ra6 {[%clk 0:02:12]} 24. Rb1 {[%clk 0:00:58]}  Kh7 {[%clk 0:02:12]} 25. Rb2 {[%clk 0:00:55]}  Bh6 {[%clk 0:01:55]} 26. Qe1 {[%clk 0:00:43]}  dxe4 {[%clk 0:01:22]} 27. Nxe4 {[%clk 0:00:32]}  c3 {[%clk 0:01:20]} 28. Qxc3 {[%clk 0:00:31]}  Qd5 {[%clk 0:01:12]} 29. Ng5+ {[%clk 0:00:26]}  Bxg5 {[%clk 0:01:10]} 30. hxg5 {[%clk 0:00:27]}  Rxa2+ {[%clk 0:01:10]} 31. Kb1 {[%clk 0:00:25]}  Ra4 {[%clk 0:00:58]} 32. Be5 {[%clk 0:00:19]}  Rc4 {[%clk 0:00:51]} 33. Qd3 {[%clk 0:00:17]}  Kg8 {[%clk 0:00:46]} 34. Qe4 {[%clk 0:00:17]}  Qd7 {[%clk 0:00:39]} 35. Rb8+ {[%clk 0:00:14]}  Rc8 {[%clk 0:00:38]} 36. Qa8 {[%clk 0:00:14]}  Ba2+ {[%clk 0:00:21]} 37. Kc1 {[%clk 0:00:13]}  Be6 {[%clk 0:00:19]} 38. Rxc8+ {[%clk 0:00:12]}  Qxc8 {[%clk 0:00:20]} 39. Qxc8+ {[%clk 0:00:12]}  Bxc8 {[%clk 0:00:21]} 40. Kd2 {[%clk 0:00:12]}  Bb7 {[%clk 0:00:20]} 41. Rb1 {[%clk 0:00:11]} 1-0


[Site "https://www.chess.com"]